Cogmind - Beta 14 @@@ ROGUE MODE // 2024.08.09 @ 11:07:33 Player: Olafz Result: Self-destructed Performance ------------- Evolutions (4) 2000 Regions Visited (5) 1000 Robots Destroyed (0) 0 Value Destroyed (0) 0 Prototype IDs (0) 0 Alien Tech Used (0) 0 Bonus (1325) 1325 TOTAL SCORE: 4325 Bonus ------- Pacifist 1325 Cogmind --------- Core Integrity 335/850 Matter 56/300 Energy 100/100 System Corruption 4% Temperature Cool (0) Movement Core (50) Location -6/Factory Parts ------- > --- POWER (1) -------- (None) > --- PROPULSION (4) --- (None) > --- UTILITY (8) ------ Improved Terrain Scan Processor > --- WEAPON (2) ------- (None) > --- INVENTORY (5) ---- Signal Interpreter Signal Interpreter Improved Hacking Suite Peak State ------------ > --- POWER ------------ Light Deuterium Engine > --- PROPULSION ------- (None) > --- UTILITY ---------- Advanced Weight Redist. System Machine Analyzer Advanced Visual Processing Unit Signal Interpreter Improved Terrain Scan Processor > --- WEAPON ----------- Heavy Mace > --- INVENTORY -------- Signal Interpreter Signal Interpreter Improved Hacking Suite [Rating: 19] Favorites ----------- Power Light Deuterium Engine Engine Light Deuterium Engine Propulsion None Utility Improved Terrain Scan Processor Device ECM Suite Processor Improved Terrain Scan Processor Weapon Heavy Mace Impact Weapon Heavy Mace Build | -11 -10 -9 -8 -7 -6 ------- Run | Yrd Mat Mat Mat Fac Fac Slots Evolved 8 | . . 2 2 2 2 Power . | . . . . . . Propulsion 2 | . . . . 2 . Utility 6 | . . 2 2 . 2 Weapon . | . . . . . . Parts Attached 9 | . . . 5 1 3 Power 1 | . . . . . 1 Engine 1 | . . . . . 1 Core . | . . . . . . Reactor . | . . . . . . Propulsion . | . . . . . . Treads . | . . . . . . Leg . | . . . . . . Wheel . | . . . . . . Hover . | . . . . . . Flight . | . . . . . . Utility 7 | . . . 5 1 1 Device 2 | . . . 1 . 1 Storage . | . . . . . . Processor 5 | . . . 4 1 . Hackware . | . . . . . . Protection . | . . . . . . Artifact . | . . . . . . Weapon 1 | . . . . . 1 Energy Gun . | . . . . . . Energy Cannon . | . . . . . . Ballistic Gun . | . . . . . . Ballistic Cannon . | . . . . . . Launcher . | . . . . . . Special Weapon . | . . . . . . Impact Weapon 1 | . . . . . 1 Slashing Weapon . | . . . . . . Piercing Weapon . | . . . . . . Special Melee Weapon . | . . . . . . Unidentified Prototypes . | . . . . . . Parts Lost 7 | . . . . . 7 Power 1 | . . . . . 1 Propulsion . | . . . . . . Utility 5 | . . . . . 5 Weapon 1 | . . . . . 1 Highest Loss Streak 4 | . . . . . 4 To Critical Strikes . | . . . . . . Average Slot Usage (%) 23 | . . . 24 31 25 Device 4 | . . . 2 7 5 Processor 16 | . . . 22 24 16 Impact Weapon 1 | . . . . . 2 Peak Build Rating 19 | . . . 11 11 19 Average Rating 7 | . . . 5 8 9 On Entrance 3 | . . . . 8 11 Naked Turns 107 | . 53 38 16 . . Heaviest Build 8 | . . . 2 2 8 Greatest Support 12 | 3 3 3 3 3 12 Greatest Overweight (x) . | . . . . . . Average Overweight (x) . | . . . . . . Largest Inventory Capacity 5 | 5 5 5 5 5 5 Average Capacity 5 | 5 5 5 5 5 5 Most Carried 5 | . . . 5 5 5 Average Carried 3 | . . . 2 5 3 Final Capacity 5 | 5 5 5 5 5 5 Final Carried 5 | . . . 5 5 3 Class Distribution -------------------- 100% | Mutant Dominant Class ---------------- Mutant | -10/Materials Mutant | -9/Materials Mutant | -8/Materials Mutant | -7/Factory Mutant | -6/Factory Resources | -11 -10 -9 -8 -7 -6 ----------- Run | Yrd Mat Mat Mat Fac Fac Matter Collected 3 | . . . . . 3 Remotely . | . . . . . . Salvage Created . | . . . . . . Parts . | . . . . . . Haulers Intercepted . | . . . . . . Recyclers Shooed . | . . . . . . Parts Field Recycled . | . . . . . . Retrieved Matter . | . . . . . . Parts Self-Destructed . | . . . . . . Prevented . | . . . . . . Kills | -11 -10 -9 -8 -7 -6 ------- Run | Yrd Mat Mat Mat Fac Fac Combat Hostiles Destroyed . | . . . . . . Classes Destroyed . | . . . . . . Best Kill Streak . | . . . . . . Combat Bots Only . | . . . . . . Max Kills in Single Turn . | . . . . . . Gunslinging . | . . . . . . Exploded . | . . . . . . Melee . | . . . . . . Uniques/NPCs Destroyed . | . . . . . . Combat | -11 -10 -9 -8 -7 -6 -------- Run | Yrd Mat Mat Mat Fac Fac Hostile Shots Fired 139 | . 1 17 10 . 111 Missed 63 | . 1 10 6 . 46 Damage Taken 956 | . . 72 67 . 817 Core 651 | . . 72 64 . 515 Absorbed by Shields . | . . . . . . Core Remaining (%) 94 | 100 100 82 88 100 . Volleys Fired . | . . . . . . Largest . | . . . . . . Hottest . | . . . . . . Shots Fired . | . . . . . . Gun . | . . . . . . Cannon . | . . . . . . Launcher . | . . . . . . Special . | . . . . . . Kinetic . | . . . . . . Thermal . | . . . . . . Explosive . | . . . . . . Electromagnetic . | . . . . . . Robot Hit Streak . | . . . . . . Robot Miss Streak . | . . . . . . Penetration Max . | . . . . . . Secondary Targets . | . . . . . . Shots Hit Robots . | . . . . . . Core Hits . | . . . . . . Critical Kills . | . . . . . . Critical Parts Destroyed . | . . . . . . Critical Strikes . | . . . . . . Melee Attacks . | . . . . . . Impact . | . . . . . . Slashing . | . . . . . . Piercing . | . . . . . . Sneak Attacks . | . . . . . . Combat Hostiles . | . . . . . . Follow-up Attacks . | . . . . . . Damage Inflicted 12 | . . . 6 . 6 Guns . | . . . . . . Cannons . | . . . . . . Explosions . | . . . . . . Melee . | . . . . . . Ramming 12 | . . . 6 . 6 Kinetic . | . . . . . . Thermal . | . . . . . . Explosive . | . . . . . . Electromagnetic . | . . . . . . Impact . | . . . . . . Slashing . | . . . . . . Piercing . | . . . . . . Highest Corruption 4 | . . . . . 4 Average Corruption 3 | . . . . . 3 Corruption Purged . | . . . . . . Corruption Blocked . | . . . . . . Effects 4 | . . . . . 4 Message Errors 1 | . . . . . 1 Heat Flow Errors 2 | . . . . . 2 Energy Discharges 1 | . . . . . 1 Overload Shots . | . . . . . . Overflow Damage . | . . . . . . Projectiles . | . . . . . . Explosions . | . . . . . . Melee . | . . . . . . Knockbacks . | . . . . . . Impact . | . . . . . . Kinetic . | . . . . . . Secondary . | . . . . . . Self-Inflicted Damage 6 | . . . 3 . 3 Shots . | . . . . . . Rammed 2 | . . . 1 . 1 Targets Rammed 2 | . . . 1 . 1 Kicked . | . . . . . . Crushed . | . . . . . . Highest Temperature 249 | . . . . . 249 Average Temperature 118 | . . . . . 118 Received Heat Transfer 186 | . . 9 9 . 168 Siege Activations . | . . . . . . Robots Corrupted . | . . . . . . Combat Hostiles . | . . . . . . Parts Fried . | . . . . . . Impact Corruptions . | . . . . . . Robots Melted . | . . . . . . Combat Hostiles . | . . . . . . Parts Melted . | . . . . . . Heat Transferred . | . . . . . . Parts Sabotaged . | . . . . . . Parts Stolen . | . . . . . . Parts Stripped . | . . . . . . Power Chain Reactions . | . . . . . . Alert | -11 -10 -9 -8 -7 -6 ------- Run | Yrd Mat Mat Mat Fac Fac Peak Influence 219 | . 60 85 80 36 219 Initial 36 | . . 25 35 36 17 Average 65 | . 21 58 61 36 97 Maximum Alert Level 1 | . . . . . 1 Low Security (%) 91 | 100 100 100 100 100 80 Level 1 8 | . . . . . 19 Level 2 . | . . . . . . Level 3 . | . . . . . . Level 4 . | . . . . . . Level 5 . | . . . . . . High Security . | . . . . . . Max Security . | . . . . . . Squads Dispatched 2 | . . . . . 2 Investigation . | . . . . . . Extermination . | . . . . . . Reinforcement 2 | . . . . . 2 Assault . | . . . . . . Garrison . | . . . . . . Intercept . | . . . . . . Searches Triggered . | . . . . . . Construction Impeded . | . . . . . . Haulers Reinforced . | . . . . . . Active Scanning Responses . | . . . . . . Cargo Convoy Interrupts . | . . . . . . Stealth | -11 -10 -9 -8 -7 -6 --------- Run | Yrd Mat Mat Mat Fac Fac Distress Signals 3 | . 1 1 1 . . Communications Jammed . | . . . . . . Distress Signals . | . . . . . . Times Spotted 28 | . 4 7 3 . 14 Peak Tracking Total 8 | . 6 8 4 . 8 Tactical Retreats 9 | . 1 . 1 . 7 Traps | -11 -10 -9 -8 -7 -6 ------- Run | Yrd Mat Mat Mat Fac Fac Traps Triggered . | . . . . . . Indirectly . | . . . . . . Trap Hack Attempts . | . . . . . . Triggered . | . . . . . . Disarmed . | . . . . . . Reprogrammed . | . . . . . . Reused . | . . . . . . Traps Extracted . | . . . . . . Installed . | . . . . . . Triggered . | . . . . . . Machines | -11 -10 -9 -8 -7 -6 ---------- Run | Yrd Mat Mat Mat Fac Fac Machines Disabled . | . . . . . . Max in Single Turn . | . . . . . . Machines Repaired . | . . . . . . Machines Dismantled . | . . . . . . Machines Sabotaged . | . . . . . . Overloaded Fab Kills . | . . . . . . Hacking | -11 -10 -9 -8 -7 -6 --------- Run | Yrd Mat Mat Mat Fac Fac Machines Accessed 4 | . . . . . 4 Terminals 3 | . . . . . 3 Fabricators . | . . . . . . Repair Stations . | . . . . . . Recycling Units . | . . . . . . Scanalyzers 1 | . . . . . 1 Garrison Access . | . . . . . . Total Hacks 9 | . . . . . 9 Successful 5 | . . . . . 5 Failed 4 | . . . . . 4 Catastrophic 1 | . . . . . 1 Database Lockouts . | . . . . . . Manual 5 | . . . . . 5 Terminals 7 | . . . . . 7 Fabricators . | . . . . . . Repair Stations . | . . . . . . Recycling Units . | . . . . . . Scanalyzers 2 | . . . . . 2 Garrison Access . | . . . . . . Terminal Hacks 2 | . . . . . 2 Open DSF 1 | . . . . . 1 Alert Level 1 | . . . . . 1 Fabricator Hacks . | . . . . . . Repair Station Hacks . | . . . . . . Recycling Unit Hacks . | . . . . . . Scanalyzer 2 | . . . . . 2 Insert Component 1 | . . . . . 1 Analyze 1 | . . . . . 1 Garrison Access Hacks . | . . . . . . Unauthorized Hacks 1 | . . . . . 1 Terminals 1 | . . . . . 1 Botnet 1 | . . . . . 1 Fabricators . | . . . . . . Repair Stations . | . . . . . . Recycling Units . | . . . . . . Scanalyzers . | . . . . . . Garrison Access . | . . . . . . Data Cores Recovered . | . . . . . . Used . | . . . . . . Hacking Detections 2 | . . . . . 2 Full Trace Events . | . . . . . . Feedback Events . | . . . . . . Feedback Blocked . | . . . . . . Robot Schematics Acquired . | . . . . . . Robots Built . | . . . . . . Authchips . | . . . . . . Time . | . . . . . . Total Robot Build Rating . | . . . . . . Part Schematics Acquired 1 | . . . . . 1 Parts Built . | . . . . . . Authchips . | . . . . . . Time . | . . . . . . Total Part Build Rating . | . . . . . . Parts Repaired . | . . . . . . Time . | . . . . . . Parts Recycled . | . . . . . . Recycled Matter . | . . . . . . Retrieved Matter . | . . . . . . Retrieved Components . | . . . . . . Parts Scanalyzed 1 | . . . . . 1 Part Schematics Acquired 1 | . . . . . 1 Parts Damaged 1 | . . . . . 1 Bothacking | -11 -10 -9 -8 -7 -6 ------------ Run | Yrd Mat Mat Mat Fac Fac Used RIF Installer . | . . . . . . Robots Hacked . | . . . . . . Non-combat . | . . . . . . Combat . | . . . . . . Robot Hacks Applied . | . . . . . . Relay Couplers Released . | . . . . . . Fabnet Peak Effective % . | . . . . . . Robots Rewired . | . . . . . . Allies Hacked . | . . . . . . Hacks Repelled . | . . . . . . Allies | -11 -10 -9 -8 -7 -6 -------- Run | Yrd Mat Mat Mat Fac Fac Total Allies . | . . . . . . Largest Group . | . . . . . . Highest-Rated Group . | . . . . . . Highest-Rated Ally . | . . . . . . Total Orders . | . . . . . . Ally Attacks . | . . . . . . Total Damage . | . . . . . . Kills . | . . . . . . Allies Corrupted . | . . . . . . Allies Melted . | . . . . . . Intel | -11 -10 -9 -8 -7 -6 ------- Run | Yrd Mat Mat Mat Fac Fac Robot Analysis Total . | . . . . . . Derelict Logs Recovered . | . . . . . . Drone Launches . | . . . . . . Drone Recoveries . | . . . . . . Exploration | -11 -10 -9 -8 -7 -6 ------------- Run | Yrd Mat Mat Mat Fac Fac Turns Passed 618 | 9 53 38 97 155 266 Spaces Moved 1177 | 18 106 75 166 294 518 Core 1177 | 18 106 75 166 294 518 Treads . | . . . . . . Legs . | . . . . . . Wheels . | . . . . . . Hover . | . . . . . . Flight . | . . . . . . Fastest Speed 50 | 50 50 50 50 50 50 Average Speed 50 | 50 50 50 50 50 50 Slowest Speed 50 | 50 50 50 50 50 50 Overloaded Moves . | . . . . . . Propulsion Burnouts . | . . . . . . Robots Hopped . | . . . . . . Cave-ins Triggered . | . . . . . . Exploration Rate (%) 15 | 3 28 13 23 12 15 Regions Visited 5 Branch Regions . Pre-discovered Areas . | . . . . . . Known Exits Taken 2 | . . . 1 1 . Unknown Exits Taken 3 | 1 1 1 . . . Scrap Searched . | . . . . . . Spaces Dug . | . . . . . . Terrain Destroyed . | . . . . . . Melee . | . . . . . . Projectile . | . . . . . . AOE . | . . . . . . Terrain Rammed . | . . . . . . Walls Destroyed . | . . . . . . Machines Disabled . | . . . . . . Actions | -11 -10 -9 -8 -7 -6 --------- Run | Yrd Mat Mat Mat Fac Fac Total 1197 | 17 105 74 177 300 524 Wait 6 | . . . . 6 . Move 1172 | 17 105 74 165 293 518 Hop . | . . . . . . Pick Up 6 | . . . 5 . 1 Fast Attach 7 | . . . 5 1 1 Attach 2 | . . . . . 2 Detach 1 | . . . 1 . . Swap . | . . . . . . Drop 1 | . . . . . 1 Fire . | . . . . . . Melee . | . . . . . . Ram 2 | . . . 1 . 1 Kick . | . . . . . . Crush . | . . . . . . Escape Stasis . | . . . . . . Rewire . | . . . . . . Trap . | . . . . . . Miscellaneous . | . . . . . . Route ------- -11/Scrapyard -10/Materials (discovered 2 exits: [*Mat] / [*Min]) -9/Materials -8/Materials -7/Factory -6/Factory (discovered 1 exit: [*Ext]) History --------- Turn | Location | Event 3 | -11/Scrapyard | Discovered new exit (range 15) 10 | -11/Scrapyard | Entered Materials 53 | -10/Materials | Discovered new exit (range 9) 56 | -10/Materials | Discovered new exit (range 15) 63 | -10/Materials | Entered another Materials area 63 | -9/Materials | Evolved 2 slots: Utility x2 98 | -9/Materials | Discovered new exit (range 5) 101 | -9/Materials | Entered another Materials area 101 | -8/Materials | Evolved 2 slots: Utility x2 191 | -8/Materials | Discovered new exit (range 14) 198 | -8/Materials | Identified exit to Factory 198 | -8/Materials | Entered Factory 198 | -7/Factory | Evolved 2 slots: Propulsion x2 301 | -7/Factory | Discovered new exit (range 13) 311 | -7/Factory | Identified exit to Factory 312 | -7/Factory | Build established: Mutant 353 | -7/Factory | Entered another Factory area 353 | -6/Factory | Evolved 2 slots: Utility x2 500 | -6/Factory | Discovered new exit (range 15) 523 | -6/Factory | Lost 4 parts (1p3u) 579 | -6/Factory | Core integrity fell below 50% 619 | -6/Factory | Self-destructed Last Messages --------------- Fabricator x1 Acquired Adv. Weight Redist. System. ALERT: Suspicious intruders detected, dispatching Specialist reinforcements to area. Adv. Visual Processing Unit destroyed. System corrupted by crushing effect (+3). Signal Interpreter destroyed. Lgt. Deuterium Engine destroyed. WM4G 5L OGQ=UT#MOSI2OF>M Machine Analyzer destroyed. Critical hit (Blast). Acquired 3 matter. EXIT=FOUND ALERT: Security rotation in progress. System corrupted: Heat flow error (+286). System corrupted: Energy discharge (-40). Hvy. Mace destroyed. Adv. Weight Redist. System destroyed. System corrupted: Heat flow error (+181). Slug penetrates P-60 Hacker. Map ----- +----------------------------------------------------+ | ?????????????????????????????# """ """ # | | ?????????????????????????????# # | | ?????????????????????????????# """ """ # | | ?????????????????????????????? """ """ # | | ????????????????????????????????""" """ # | | ???????????????????????????????? # | | ????????????????????????????????########### | | ????????????????########??????????????????# | | ????????????????# [[#??????????????????# | | ????????????????# [[#??????????????????# | | ????????????????#! #??????????????????### | | ????????????????# "" ]#??????????????????### | | ????????????????# S"" #?????????????????? | | ????????????????# "" #????????????????" " " | | ????????????????######+##?????????????# " " " | | ????????????????????# #####?????????# " " " | | ????????????????????# #?????????# " " " | | ????????????????????# ### #?####????# " " " | | ????????????????????## ##?# ###T ###### " " " | | ?????????????????????# #??# ## " " " | | ???????????????????### ########## ## " " " | | ???????????????????# #??????# #? " " " | | ???????????????????# #??????# #??? | | ???????????????????# #??????# #???##+# | | ???????????????????# #??????# ##### | | ???????????????????#@ #??????# | | ???????????????????# #??????########## | | ???????????????????# #????????######## | | ???????????????????# #????????# ## | | ???????????????????# ########## | | ???????????????????# | | ???????????????????# ### | | ???????????????????# #?# ### # | | ???????????????????# #?######### # | | ???????????????????# #????# # # | | ???????????????????##########+######## # # | | ??????????????????????# # # # | | ??????????????????????# """ """ """ # + # | | ??????????????????????# """ """ """ # ### | | ??????????????????????# """ """ """ # #?? | | ??????????????????????# ?# #?? | | ??????????????????????# ! ! ?#####??? | | ??????????????????????###############???????? | | | | | | | | | | | | | | | +----------------------------------------------------+ Best States ------------- Heat Dissipation 37 Energy Generation 14 Energy Capacity 140 Matter Stores 100 Matter Capacity 300 Sight Range 20 Terrain Scan Density 110 ECM Strength 1 Additional Mass Support 9 Evasion (%) 50 Item Schematics ----------------- ECM Suite | -6/Factory | Scanalyzed Robot Schematics ------------------ None Fabricated ------------ Nothing Alien Tech Used ----------------- None Achievements -------------- None Challenges ------------ None Game ------ Seed ServoPlatingMachine Manual? 0 Play Time 00:10:32 Cumulative 183.2 hours Start 2024.08.09 @ 10:57:28 End 2024.08.09 @ 11:07:33 Sessions 1 Manual Loads 0 Difficulty Rogue Special Mode None Game No. 306 Rogue 304 Adventurer 2 Explorer 0 Win Type - Total 6 Types 5/0/0/1/0/0/0/0/0 Lore% 69 Gallery% 62 Achievement% 53 Wizard Run 0 Options --------- Layout 0 ASCII 0 Keyboard 1 Movement Numpad Keybinds 1 Fullscreen 2 Font 18/SmallcapsGlow Map View 76x50 Zoom Use 0% Tactical HUD 1 Map Filters NONE Filters NONE Steam 1 RUN: 39ea1998-1fa8-4401-9d8b-07fd0c5d2748